[Event "*** Titled Tuesday Blitz"]
[Site "Chess.com"]
[Date "2021.04.20"]
[Round "7"]
[White "nikitakhoroshev"]
[Black "TimofeevAr"]
[Result "1-0"]
[WhiteElo "2638"]
[BlackElo "2809"]
[TimeControl "180+1"]
[EndTime "11:19:02 PDT"]
[Termination "nikitakhoroshev won by resignation"]

1. e4 {[%clk 0:03:00.9]} 1... d5 {[%clk 0:02:59.2]} 2. exd5 {[%clk 0:03:00.1]}
2... Qxd5 {[%clk 0:02:59.3]} 3. Nc3 {[%clk 0:02:59.3]} 3... Qd8 {[%clk
0:02:59.4]} 4. Bc4 {[%clk 0:02:55.8]} 4... Nf6 {[%clk 0:02:57]} 5. d4 {[%clk
0:02:54.8]} 5... g6 {[%clk 0:02:57.1]} 6. Nge2 {[%clk 0:02:52.2]} 6... Bg7
{[%clk 0:02:57.1]} 7. O-O {[%clk 0:02:52.8]} 7... O-O {[%clk 0:02:57.2]} 8. h3
{[%clk 0:02:50.6]} 8... b6 {[%clk 0:02:56.6]} 9. Be3 {[%clk 0:02:48.2]} 9... Ba6
{[%clk 0:02:56.1]} 10. Qd3 {[%clk 0:02:44.7]} 10... Qc8 {[%clk 0:02:53.5]} 11.
Rad1 {[%clk 0:02:38.9]} 11... Rd8 {[%clk 0:02:52.7]} 12. Bxa6 {[%clk 0:02:37.7]}
12... Qxa6 {[%clk 0:02:51.4]} 13. Qxa6 {[%clk 0:02:37.6]} 13... Nxa6 {[%clk
0:02:51.3]} 14. a3 {[%clk 0:02:37.9]} 14... c6 {[%clk 0:02:50.6]} 15. Rfe1
{[%clk 0:02:34.7]} 15... Nc7 {[%clk 0:02:50.4]} 16. Nf4 {[%clk 0:02:34.7]} 16...
Rac8 {[%clk 0:02:48.1]} 17. Bc1 {[%clk 0:02:33]} 17... e6 {[%clk 0:02:47.6]} 18.
Nce2 {[%clk 0:02:31.1]} 18... Nb5 {[%clk 0:02:44.4]} 19. a4 {[%clk 0:02:29.4]}
19... Nd6 {[%clk 0:02:43.2]} 20. Nd3 {[%clk 0:02:27.7]} 20... Kf8 {[%clk
0:02:36]} 21. Kf1 {[%clk 0:02:26.7]} 21... Nf5 {[%clk 0:02:34.1]} 22. c3 {[%clk
0:02:26]} 22... c5 {[%clk 0:02:19.1]} 23. dxc5 {[%clk 0:02:25.5]} 23... bxc5
{[%clk 0:02:19.5]} 24. Ne5 {[%clk 0:02:25.5]} 24... Nd5 {[%clk 0:02:17.3]} 25.
Nc4 {[%clk 0:02:24.1]} 25... Nb6 {[%clk 0:02:13.9]} 26. Nxb6 {[%clk 0:02:17.2]}
26... axb6 {[%clk 0:02:13.9]} 27. b3 {[%clk 0:02:16.7]} 27... Ke7 {[%clk
0:02:08.6]} 28. g4 {[%clk 0:02:12.5]} 28... Nd6 {[%clk 0:01:56.6]} 29. f3 {[%clk
0:02:12.6]} 29... Kd7 {[%clk 0:01:49]} 30. Bg5 {[%clk 0:02:10.8]} 30... f6
{[%clk 0:01:48.2]} 31. Be3 {[%clk 0:02:07.6]} 31... Kc6 {[%clk 0:01:47.9]} 32.
Rd2 {[%clk 0:02:06]} 32... Nf7 {[%clk 0:01:46.4]} 33. Red1 {[%clk 0:02:05.4]}
33... Rxd2 {[%clk 0:01:46]} 34. Rxd2 {[%clk 0:02:06.3]} 34... f5 {[%clk
0:01:46.5]} 35. Kf2 {[%clk 0:02:03.7]} 35... Ra8 {[%clk 0:01:41]} 36. c4 {[%clk
0:01:56.6]} 36... g5 {[%clk 0:01:35]} 37. Rd1 {[%clk 0:01:53.3]} 37... h6 {[%clk
0:01:26.7]} 38. Kg2 {[%clk 0:01:51.3]} 38... Re8 {[%clk 0:01:20.6]} 39. Nc1
{[%clk 0:01:48.4]} 39... Ne5 {[%clk 0:01:17.7]} 40. Nd3 {[%clk 0:01:48.2]} 40...
Ng6 {[%clk 0:01:16.5]} 41. Bf2 {[%clk 0:01:46.6]} 41... Bc3 {[%clk 0:01:12.2]}
42. Bg3 {[%clk 0:01:41.3]} 42... Bd4 {[%clk 0:01:09.9]} 43. b4 {[%clk
0:01:40.8]} 43... Ra8 {[%clk 0:01:07.4]} 44. Re1 {[%clk 0:01:36]} 44... Kd7
{[%clk 0:01:06.4]} 45. a5 {[%clk 0:01:29.8]} 45... bxa5 {[%clk 0:01:04.6]} 46.
bxc5 {[%clk 0:01:29.6]} 46... a4 {[%clk 0:00:54.2]} 47. c6+ {[%clk 0:01:26.3]}
47... Kxc6 {[%clk 0:00:35.5]} 48. Rxe6+ {[%clk 0:01:25.5]} 48... Kb7 {[%clk
0:00:36.2]} 49. Rxg6 {[%clk 0:01:20.5]} 49... a3 {[%clk 0:00:36.6]} 50. Nc1
{[%clk 0:01:15.5]} 50... a2 {[%clk 0:00:35.2]} 51. Nxa2 {[%clk 0:01:15.4]} 51...
Rxa2+ {[%clk 0:00:34.7]} 52. Kf1 {[%clk 0:01:16.3]} 52... f4 {[%clk 0:00:18.9]}
53. Be1 {[%clk 0:01:16]} 53... Ra1 {[%clk 0:00:13.6]} 54. Ke2 {[%clk 0:01:16]}
54... Ra2+ {[%clk 0:00:06.9]} 55. Kd3 {[%clk 0:01:15.4]} 55... Bc5 {[%clk
0:00:06.3]} 56. Bd2 {[%clk 0:01:07]} 56... Ra3+ {[%clk 0:00:06.2]} 57. Ke4
{[%clk 0:01:07]} 57... Ra2 {[%clk 0:00:06.4]} 58. Kd5 {[%clk 0:00:59.4]} 58...
Rxd2+ {[%clk 0:00:05.8]} 59. Kxc5 {[%clk 0:00:59.6]} 59... Rd3 {[%clk
0:00:06.3]} 60. Rxh6 {[%clk 0:00:57.8]} 60... Rxf3 {[%clk 0:00:06]} 61. Rh7+
{[%clk 0:00:58.3]} 61... Kb8 {[%clk 0:00:05.9]} 62. Kc6 {[%clk 0:00:56.7]} 62...
Rf1 {[%clk 0:00:05.5]} 63. c5 {[%clk 0:00:56.4]} 63... f3 {[%clk 0:00:06]} 64.
Rh8+ {[%clk 0:00:55.9]} 64... Ka7 {[%clk 0:00:05.5]} 65. Rf8 {[%clk 0:00:55.3]}
65... f2 {[%clk 0:00:05.6]} 66. Rf7+ {[%clk 0:00:49.9]} 66... Ka6 {[%clk
0:00:05.9]} 67. Rf8 {[%clk 0:00:49.5]} 67... Ka5 {[%clk 0:00:06.2]} 68. Kc7
{[%clk 0:00:46]} 68... Rc1 {[%clk 0:00:05.7]} 69. Rxf2 {[%clk 0:00:45.3]} 69...
Rxc5+ {[%clk 0:00:05.9]} 70. Kd6 {[%clk 0:00:45.5]} 70... Rc3 {[%clk 0:00:06.3]}
71. Rf5+ {[%clk 0:00:44.9]} 71... Kb6 {[%clk 0:00:06.6]} 72. Rxg5 {[%clk
0:00:45.2]} 72... Rxh3 {[%clk 0:00:06.7]} 73. Rd5 {[%clk 0:00:42.4]} 73... Rg3
{[%clk 0:00:06.2]} 74. g5 {[%clk 0:00:42.5]} 74... Rg1 {[%clk 0:00:06.3]} 75.
Ke6 {[%clk 0:00:41.8]} 75... Kc6 {[%clk 0:00:06.7]} 76. Ra5 {[%clk 0:00:41.2]}
76... Re1+ {[%clk 0:00:05.7]} 77. Re5 {[%clk 0:00:41.1]} 77... Rg1 {[%clk
0:00:05.1]} 78. Kf6 {[%clk 0:00:39.8]} 78... Kd6 {[%clk 0:00:05.3]} 79. Re2
{[%clk 0:00:40]} 79... Rf1+ {[%clk 0:00:04.9]} 80. Kg7 {[%clk 0:00:40.2]} 80...
Rg1 {[%clk 0:00:05]} 81. g6 {[%clk 0:00:40.5]} 81... Kd7 {[%clk 0:00:03.7]} 82.
Kf7 {[%clk 0:00:39.8]} 82... Rf1+ {[%clk 0:00:03.5]} 83. Kg8 {[%clk 0:00:40.1]}
83... Rg1 {[%clk 0:00:04]} 84. g7 {[%clk 0:00:40.5]} 84... Kd6 {[%clk
0:00:04.4]} 85. Re4 {[%clk 0:00:38.5]} 85... Kd5 {[%clk 0:00:03.5]} 86. Re8
{[%clk 0:00:37.1]} 86... Kd6 {[%clk 0:00:03.7]} 87. Re3 {[%clk 0:00:30.2]} 87...
Rg2 {[%clk 0:00:02.6]} 88. Kf7 {[%clk 0:00:28.6]} 88... Rf2+ {[%clk 0:00:02.7]}
89. Ke8 {[%clk 0:00:25.9]} 89... Rg2 {[%clk 0:00:02.9]} 90. Re7 {[%clk
0:00:24.4]} 90... Rg1 {[%clk 0:00:01.9]} 91. Kf8 {[%clk 0:00:23.4]} 91... Rf1+
{[%clk 0:00:01.7]} 92. Rf7 {[%clk 0:00:23.6]} 92... Rxf7+ {[%clk 0:00:01.6]} 93.
Kxf7 {[%clk 0:00:23.5]} 1-0

[Event "*** Titled Tuesday Blitz"]
[Site "Chess.com"]
[Date "2021.04.20"]
[Round "7"]
[White "Anton_Demchenko"]
[Black "Aradhya2000"]
[Result "1-0"]
[WhiteElo "2895"]
[BlackElo "2616"]
[TimeControl "180+1"]
[EndTime "11:19:08 PDT"]
[Termination "Anton_Demchenko won by resignation"]

1. e4 {[%clk 0:03:00.9]} 1... e5 {[%clk 0:02:59.7]} 2. Nf3 {[%clk 0:03:00.1]}
2... Nc6 {[%clk 0:03:00.1]} 3. Bc4 {[%clk 0:03:00.5]} 3... Nf6 {[%clk
0:03:00.6]} 4. d3 {[%clk 0:03:01.1]} 4... Bc5 {[%clk 0:03:01.1]} 5. Bg5 {[%clk
0:03:00.3]} 5... h6 {[%clk 0:03:00.4]} 6. Bh4 {[%clk 0:03:00.8]} 6... Be7 {[%clk
0:02:59]} 7. Bg3 {[%clk 0:03:01]} 7... d6 {[%clk 0:02:59]} 8. a4 {[%clk
0:03:01.7]} 8... O-O {[%clk 0:02:42.1]} 9. Nbd2 {[%clk 0:03:01.9]} 9... a5
{[%clk 0:02:36.7]} 10. c3 {[%clk 0:03:01.2]} 10... Be6 {[%clk 0:02:34.6]} 11.
Bxe6 {[%clk 0:03:00.4]} 11... fxe6 {[%clk 0:02:35.5]} 12. O-O {[%clk 0:03:00.7]}
12... Qe8 {[%clk 0:02:33.7]} 13. Qb3 {[%clk 0:03:00.4]} 13... Nd8 {[%clk
0:02:25.6]} 14. d4 {[%clk 0:02:58.2]} 14... exd4 {[%clk 0:02:25.1]} 15. cxd4
{[%clk 0:02:58.6]} 15... Kh8 {[%clk 0:02:25]} 16. Rac1 {[%clk 0:02:56.4]} 16...
c6 {[%clk 0:02:24.7]} 17. e5 {[%clk 0:02:47.5]} 17... dxe5 {[%clk 0:02:24.5]}
18. Nxe5 {[%clk 0:02:46.1]} 18... Nh5 {[%clk 0:02:22.2]} 19. Qd3 {[%clk
0:02:42.9]} 19... Nxg3 {[%clk 0:02:18.6]} 20. hxg3 {[%clk 0:02:31]} 20... Kg8
{[%clk 0:02:17.1]} 21. Rfe1 {[%clk 0:02:28]} 21... Bb4 {[%clk 0:01:34.8]} 22.
Re2 {[%clk 0:02:23.1]} 22... Bxd2 {[%clk 0:01:25.2]} 23. Qxd2 {[%clk 0:02:22.6]}
23... Qe7 {[%clk 0:01:24]} 24. Ng6 {[%clk 0:02:19.2]} 24... Qf6 {[%clk
0:01:22.8]} 25. Nxf8 {[%clk 0:02:18.6]} 25... Qxf8 {[%clk 0:01:22.8]} 26. Rce1
{[%clk 0:02:16.5]} 26... Ra6 {[%clk 0:01:21.7]} 27. Re3 {[%clk 0:02:04.9]} 27...
Qf5 {[%clk 0:01:13]} 28. Rf3 {[%clk 0:02:02.8]} 28... Qd5 {[%clk 0:01:12.7]} 29.
Re5 {[%clk 0:02:00.5]} 29... Qd6 {[%clk 0:01:06.6]} 30. Rxa5 {[%clk 0:01:55.2]}
30... Rxa5 {[%clk 0:01:06.6]} 31. Qxa5 {[%clk 0:01:54.9]} 31... Qxd4 {[%clk
0:01:07.2]} 32. Qc3 {[%clk 0:01:48]} 32... Qd1+ {[%clk 0:01:04.2]} 33. Kh2
{[%clk 0:01:48.2]} 33... Qxa4 {[%clk 0:01:03.3]} 34. Qa3 {[%clk 0:01:36.2]}
34... Qxa3 {[%clk 0:00:57.5]} 35. Rxa3 {[%clk 0:01:37.1]} 35... Kf7 {[%clk
0:00:57.6]} 36. g4 {[%clk 0:01:37.3]} 36... e5 {[%clk 0:00:57.1]} 37. Kg3 {[%clk
0:01:35.9]} 37... Ke7 {[%clk 0:00:56.3]} 38. g5 {[%clk 0:01:28.6]} 38... hxg5
{[%clk 0:00:46]} 39. Kg4 {[%clk 0:01:28.9]} 39... Kf6 {[%clk 0:00:46.4]} 40.
Rf3+ {[%clk 0:01:20.5]} 40... Kg6 {[%clk 0:00:46.5]} 41. Rf8 {[%clk 0:00:50.8]}
41... Ne6 {[%clk 0:00:41.8]} 42. Rb8 {[%clk 0:00:51]} 42... b5 {[%clk
0:00:40.7]} 43. Rc8 {[%clk 0:00:29.2]} 43... Nd4 {[%clk 0:00:40.5]} 44. Rd8
{[%clk 0:00:29.5]} 44... Kf6 {[%clk 0:00:36.8]} 45. Rd6+ {[%clk 0:00:19.8]}
45... Ke7 {[%clk 0:00:36.9]} 46. Rg6 {[%clk 0:00:17.6]} 46... Kf7 {[%clk
0:00:37.2]} 47. Rxg5 {[%clk 0:00:17.5]} 47... Kf6 {[%clk 0:00:35.4]} 48. Rh5
{[%clk 0:00:17.4]} 48... c5 {[%clk 0:00:35.7]} 49. f4 {[%clk 0:00:14.4]} 49...
Nc6 {[%clk 0:00:31.3]} 50. Rh8 {[%clk 0:00:07.5]} 50... exf4 {[%clk 0:00:26]}
51. Kxf4 {[%clk 0:00:08.4]} 51... Nd4 {[%clk 0:00:25]} 52. Ke4 {[%clk 0:00:08]}
52... Ne6 {[%clk 0:00:22.2]} 53. Rb8 {[%clk 0:00:07.5]} 53... b4 {[%clk
0:00:22]} 54. Rb6 {[%clk 0:00:07.9]} 54... Ke7 {[%clk 0:00:21.4]} 55. Ke5 {[%clk
0:00:08.3]} 55... Nc7 {[%clk 0:00:20.3]} 56. Rc6 {[%clk 0:00:07.1]} 56... Kd7
{[%clk 0:00:12.5]} 57. Rxc5 {[%clk 0:00:07.1]} 57... Na6 {[%clk 0:00:12.2]} 58.
Rc4 {[%clk 0:00:07]} 58... Ke7 {[%clk 0:00:09.9]} 59. g4 {[%clk 0:00:07.1]}
59... Kf7 {[%clk 0:00:09.3]} 60. Rc6 {[%clk 0:00:06.9]} 60... Nb8 {[%clk
0:00:09.2]} 61. Rd6 {[%clk 0:00:05.9]} 61... Ke7 {[%clk 0:00:08.8]} 62. Re6+
{[%clk 0:00:03.8]} 62... Kd7 {[%clk 0:00:08.7]} 63. Rg6 {[%clk 0:00:03.2]} 63...
Nc6+ {[%clk 0:00:08.3]} 64. Ke4 {[%clk 0:00:03]} 64... Na5 {[%clk 0:00:08.6]}
65. Rxg7+ {[%clk 0:00:03]} 65... Ke6 {[%clk 0:00:09]} 66. Ra7 {[%clk 0:00:02.8]}
66... Nc4 {[%clk 0:00:08.6]} 67. Ra6+ {[%clk 0:00:03]} 67... Kf7 {[%clk
0:00:06.4]} 68. b3 {[%clk 0:00:03.3]} 68... Nd2+ {[%clk 0:00:06.8]} 69. Kf5
{[%clk 0:00:03.5]} 69... Nxb3 {[%clk 0:00:06.8]} 70. Ra7+ {[%clk 0:00:04]} 70...
Kf8 {[%clk 0:00:06.3]} 71. Rb7 {[%clk 0:00:03.3]} 71... Nd4+ {[%clk 0:00:05.9]}
72. Kf6 {[%clk 0:00:03.6]} 72... Ke8 {[%clk 0:00:05.2]} 73. Rxb4 {[%clk
0:00:04]} 73... Nc6 {[%clk 0:00:05]} 74. Re4+ {[%clk 0:00:04.5]} 74... Kf8
{[%clk 0:00:04.9]} 75. g5 {[%clk 0:00:05.4]} 75... Nd8 {[%clk 0:00:04.9]} 76.
Kg6 {[%clk 0:00:05.1]} 76... Nc6 {[%clk 0:00:03.3]} 77. Re6 {[%clk 0:00:04.6]}
77... Ne7+ {[%clk 0:00:03.4]} 78. Rxe7 {[%clk 0:00:04.7]} 78... Kxe7 {[%clk
0:00:04.3]} 79. Kg7 {[%clk 0:00:05.3]} 79... Ke6 {[%clk 0:00:04.8]} 80. g6
{[%clk 0:00:06.2]} 80... Ke7 {[%clk 0:00:05.5]} 81. Kg8 {[%clk 0:00:06.3]} 81...
Ke8 {[%clk 0:00:05.9]} 82. g7 {[%clk 0:00:06.7]} 82... Ke7 {[%clk 0:00:06.5]}
83. Kh7 {[%clk 0:00:07.2]} 83... Kf7 {[%clk 0:00:07.3]} 84. g8=Q+ {[%clk
0:00:08.1]} 84... Kf6 {[%clk 0:00:08]} 85. Qg6+ {[%clk 0:00:08.7]} 85... Ke5
{[%clk 0:00:08]} 86. Qg7+ {[%clk 0:00:09.6]} 86... Ke6 {[%clk 0:00:08.1]} 87.
Kh6 {[%clk 0:00:10.5]} 87... Kf5 {[%clk 0:00:07.2]} 88. Qg5+ {[%clk 0:00:10.9]}
1-0

[Event "*** Titled Tuesday Blitz"]
[Site "Chess.com"]
[Date "2021.04.20"]
[Round "7"]
[White "Margency"]
[Black "ChristopherYoo"]
[Result "0-1"]
[WhiteElo "2712"]
[BlackElo "2883"]
[TimeControl "180+1"]
[EndTime "11:19:10 PDT"]
[Termination "ChristopherYoo won by resignation"]

1. e4 {[%clk 0:03:00.9]} 1... c5 {[%clk 0:02:58.3]} 2. Nf3 {[%clk 0:03:00.9]}
2... e6 {[%clk 0:02:58.6]} 3. d4 {[%clk 0:03:01.3]} 3... cxd4 {[%clk 0:02:59.5]}
4. Nxd4 {[%clk 0:03:01.9]} 4... Nf6 {[%clk 0:02:59.7]} 5. Nc3 {[%clk 0:03:01.7]}
5... Qb6 {[%clk 0:02:59.9]} 6. Nb3 {[%clk 0:02:57.5]} 6... Bb4 {[%clk 0:02:59]}
7. Bd3 {[%clk 0:02:56.7]} 7... d6 {[%clk 0:02:55]} 8. Bd2 {[%clk 0:02:54]} 8...
O-O {[%clk 0:02:53.6]} 9. O-O {[%clk 0:02:53.2]} 9... Bxc3 {[%clk 0:02:48.3]}
10. Bxc3 {[%clk 0:02:52.9]} 10... e5 {[%clk 0:02:48.6]} 11. Nd2 {[%clk
0:02:42.4]} 11... Be6 {[%clk 0:02:47.1]} 12. Qf3 {[%clk 0:02:35.9]} 12... Nbd7
{[%clk 0:02:46.1]} 13. Nc4 {[%clk 0:02:33.6]} 13... Qc6 {[%clk 0:02:37]} 14. Na5
{[%clk 0:01:55.4]} 14... Qc7 {[%clk 0:02:35]} 15. Nb3 {[%clk 0:01:50.9]} 15...
Nb6 {[%clk 0:02:10.2]} 16. Nd2 {[%clk 0:01:38.1]} 16... Na4 {[%clk 0:02:07.4]}
17. Nb1 {[%clk 0:01:31.1]} 17... Rac8 {[%clk 0:01:56.3]} 18. Bb5 {[%clk
0:01:17.4]} 18... Nxc3 {[%clk 0:01:53.9]} 19. Nxc3 {[%clk 0:01:17.2]} 19... Qb6
{[%clk 0:01:54]} 20. Rab1 {[%clk 0:01:13.5]} 20... a6 {[%clk 0:01:52.6]} 21. Bd3
{[%clk 0:01:12.2]} 21... Qa5 {[%clk 0:01:34.7]} 22. a3 {[%clk 0:01:08.4]} 22...
b5 {[%clk 0:01:32.2]} 23. Ne2 {[%clk 0:00:57.4]} 23... Qb6 {[%clk 0:01:26.2]}
24. h3 {[%clk 0:00:51.9]} 24... d5 {[%clk 0:01:22.4]} 25. Ng3 {[%clk 0:00:41.3]}
25... d4 {[%clk 0:01:01.1]} 26. Nh5 {[%clk 0:00:32.2]} 26... Nxh5 {[%clk
0:00:51]} 27. Qxh5 {[%clk 0:00:32.3]} 27... f6 {[%clk 0:00:51.3]} 28. f4 {[%clk
0:00:31.4]} 28... Qd6 {[%clk 0:00:50.5]} 29. fxe5 {[%clk 0:00:27.1]} 29... fxe5
{[%clk 0:00:51.4]} 30. Rxf8+ {[%clk 0:00:19.6]} 30... Rxf8 {[%clk 0:00:52.3]}
31. Rf1 {[%clk 0:00:19.8]} 31... Rc8 {[%clk 0:00:51.9]} 32. Rf3 {[%clk
0:00:18.2]} 32... Qc7 {[%clk 0:00:29.4]} 33. Kh2 {[%clk 0:00:18]} 33... Bf7
{[%clk 0:00:26.2]} 34. Qf5 {[%clk 0:00:17.7]} 34... Re8 {[%clk 0:00:25.4]} 35.
b4 {[%clk 0:00:16.5]} 35... Be6 {[%clk 0:00:24.8]} 36. Qh5 {[%clk 0:00:15.6]}
36... Bf7 {[%clk 0:00:24.5]} 37. Qf5 {[%clk 0:00:15.8]} 37... Qe7 {[%clk
0:00:18.5]} 38. Qg4 {[%clk 0:00:13.6]} 38... Be6 {[%clk 0:00:17.9]} 39. Qg3
{[%clk 0:00:13.3]} 39... Qd6 {[%clk 0:00:17.1]} 40. Rf2 {[%clk 0:00:12.3]} 40...
Bc4 {[%clk 0:00:14.9]} 41. Rf5 {[%clk 0:00:11.8]} 41... g6 {[%clk 0:00:12.6]}
42. h4 {[%clk 0:00:11.7]} 42... Kh8 {[%clk 0:00:12.8]} 43. Rf3 {[%clk 0:00:10]}
43... Kg7 {[%clk 0:00:10.7]} 44. Qg5 {[%clk 0:00:10.2]} 44... h6 {[%clk
0:00:10.3]} 45. Qg3 {[%clk 0:00:10.8]} 45... Rf8 {[%clk 0:00:10.1]} 46. Rxf8
{[%clk 0:00:09.5]} 46... Kxf8 {[%clk 0:00:11]} 47. Qf2+ {[%clk 0:00:09.4]} 47...
Kg8 {[%clk 0:00:10.9]} 48. Qg3 {[%clk 0:00:09.3]} 48... Kg7 {[%clk 0:00:11]} 49.
Qg4 {[%clk 0:00:09.2]} 49... Be6 {[%clk 0:00:11]} 50. Qg3 {[%clk 0:00:09.5]}
50... Bd7 {[%clk 0:00:11.2]} 51. Qf2 {[%clk 0:00:09.5]} 51... g5 {[%clk
0:00:10.7]} 52. hxg5 {[%clk 0:00:09.4]} 52... hxg5 {[%clk 0:00:11.6]} 53. Kg1
{[%clk 0:00:09.2]} 53... Kg6 {[%clk 0:00:05.2]} 54. g3 {[%clk 0:00:08]} 54...
Be6 {[%clk 0:00:04.3]} 55. Qh2 {[%clk 0:00:08.1]} 55... Qf8 {[%clk 0:00:03.8]}
56. Be2 {[%clk 0:00:06.7]} 56... Qf6 {[%clk 0:00:02.3]} 57. Qh5+ {[%clk
0:00:05]} 57... Kg7 {[%clk 0:00:02.7]} 58. Qe8 {[%clk 0:00:05.3]} 58... Bc4
{[%clk 0:00:02.7]} 59. Qd7+ {[%clk 0:00:04.9]} 59... Kh6 {[%clk 0:00:03]} 60.
Qh3+ {[%clk 0:00:04.4]} 60... Kg7 {[%clk 0:00:02.4]} 61. Qd7+ {[%clk 0:00:04.4]}
61... Kh6 {[%clk 0:00:02.5]} 62. Bg4 {[%clk 0:00:03.3]} 62... Qf1+ {[%clk
0:00:02]} 63. Kh2 {[%clk 0:00:04]} 63... Qf2+ {[%clk 0:00:02.9]} 64. Kh1 {[%clk
0:00:04.3]} 64... Qe1+ {[%clk 0:00:03.4]} 65. Kh2 {[%clk 0:00:04.5]} 65... Qf2+
{[%clk 0:00:03.7]} 66. Kh1 {[%clk 0:00:05]} 66... Qxg3 {[%clk 0:00:03.4]} 67.
Qd6+ {[%clk 0:00:04.5]} 67... Kg7 {[%clk 0:00:03.6]} 68. Qe7+ {[%clk 0:00:04]}
68... Bf7 {[%clk 0:00:03.8]} 69. Qxg5+ {[%clk 0:00:04.5]} 69... Bg6 {[%clk
0:00:03.2]} 70. Qe7+ {[%clk 0:00:04.8]} 70... Kh6 {[%clk 0:00:03.3]} 71. Qf8+
{[%clk 0:00:05]} 71... Kg5 {[%clk 0:00:03.7]} 72. Bf5 {[%clk 0:00:04.3]} 72...
Qf3+ {[%clk 0:00:03.9]} 73. Kg1 {[%clk 0:00:04.7]} 73... Bxf5 {[%clk 0:00:04.4]}
74. exf5 {[%clk 0:00:05.1]} 74... Qxf5 {[%clk 0:00:04.3]} 75. Qg7+ {[%clk
0:00:05.4]} 75... Kf4 {[%clk 0:00:04.4]} 76. Kf2 {[%clk 0:00:04.3]} 76... Qxc2+
{[%clk 0:00:04.3]} 77. Ke1 {[%clk 0:00:04.8]} 77... Qc1+ {[%clk 0:00:04.7]} 78.
Ke2 {[%clk 0:00:05]} 78... Qe3+ {[%clk 0:00:05.6]} 79. Kd1 {[%clk 0:00:05.3]}
79... Qd3+ {[%clk 0:00:05]} 80. Ke1 {[%clk 0:00:05.6]} 80... Qxa3 {[%clk
0:00:05.3]} 81. Qh6+ {[%clk 0:00:05]} 81... Ke4 {[%clk 0:00:05.3]} 82. Qc6+
{[%clk 0:00:05.2]} 82... Kf5 {[%clk 0:00:04]} 83. Qd7+ {[%clk 0:00:05]} 83...
Kf4 {[%clk 0:00:04.4]} 84. Qf7+ {[%clk 0:00:04.7]} 84... Ke3 {[%clk 0:00:03.1]}
85. Kf1 {[%clk 0:00:04.6]} 85... Qc1+ {[%clk 0:00:02.7]} 86. Kg2 {[%clk
0:00:04.9]} 86... Qd2+ {[%clk 0:00:03.6]} 87. Kg3 {[%clk 0:00:05.2]} 87... Kd3
{[%clk 0:00:03.3]} 88. Qf5+ {[%clk 0:00:03.4]} 88... e4 {[%clk 0:00:03.3]} 89.
Qe6 {[%clk 0:00:03.3]} 89... Qxb4 {[%clk 0:00:03]} 90. Qxa6 {[%clk 0:00:02.2]}
90... Qc4 {[%clk 0:00:03]} 91. Kf4 {[%clk 0:00:03.1]} 91... b4 {[%clk
0:00:02.8]} 92. Qa1 {[%clk 0:00:02.5]} 92... b3 {[%clk 0:00:03.2]} 93. Qf1+
{[%clk 0:00:02.5]} 93... Kc3 {[%clk 0:00:03.4]} 94. Qa1+ {[%clk 0:00:02.2]}
94... b2 {[%clk 0:00:03.5]} 95. Qe1+ {[%clk 0:00:02.9]} 95... Kc2 {[%clk
0:00:03.8]} 96. Qf2+ {[%clk 0:00:02.2]} 96... Kb3 {[%clk 0:00:04.3]} 97. Qe1
{[%clk 0:00:01.5]} 97... Qc1+ {[%clk 0:00:04.1]} 0-1